bitfinex/quotes_BTCUSD_20260311
["timestamp","ask_amount","ask_price","bid_price","bid_amount"]
[1773236328552,0.07051352,70984.0,70961.0,0.00148]
[1773236328898,0.00144,70983.0,70961.0,0.00148]
[1773236329102,7.5e-05,70984.0,70961.0,0.00148]
[1773236329693,7.5e-05,70984.0,70962.0,0.07046024]
[1773236330528,7.5e-05,70984.0,70970.0,0.15869156]
[1773236330754,7.5e-05,70993.0,70971.0,0.00148]
[1773236331590,7.5e-05,70993.0,70973.0,0.07044932]
[1773236332028,7.5e-05,70993.0,70972.0,0.06970751]
[1773236332194,7.5e-05,70993.0,70966.0,0.07045627]
[1773236332395,0.07489059,70992.0,70966.0,0.07045627]
[1773236332974,0.07489059,70992.0,70964.0,0.07045627]
[1773236333183,0.07489059,70992.0,70966.0,0.07045627]
[1773236333585,0.07589059,70992.0,70966.0,0.07045627]
[1773236333958,0.07489059,70990.0,70962.0,0.07193991]
[1773236334155,0.15869156,70990.0,70948.0,0.07047216]
[1773236334358,0.07489059,70989.0,70948.0,0.07047216]
[1773236334655,0.07489059,70977.0,70948.0,0.00148]
[1773236334824,0.00148,70976.0,70948.0,0.00148]
[1773236335211,0.00148,70975.0,70948.0,0.00148]
[1773236335836,0.07044634,70976.0,70949.0,0.07047315]
[1773236336072,0.00148,70975.0,70949.0,0.07047315]
[1773236336441,0.00248,70975.0,70949.0,0.07047315]
[1773236336667,0.00248,70975.0,70949.0,0.07195315]
[1773236336974,0.07489059,70974.0,70947.0,0.07047315]
[1773236337263,0.07489059,70974.0,70953.0,7.5e-05]
[1773236337624,0.07489059,70972.0,70947.0,0.07047315]
[1773236337970,0.07489059,70970.0,70941.0,0.07218011]
[1773236338273,0.07193131,70973.0,70941.0,0.07218011]
[1773236338274,0.00148,70969.0,70941.0,0.07218011]
[1773236339348,0.00148,70969.0,70941.0,0.07318011]
[1773236339749,0.00148,70969.0,70941.0,0.07218011]
[1773236339961,0.07489059,70967.0,70941.0,0.07070011]
[1773236340536,0.07045428,70968.0,70941.0,0.07070011]
[1773236340754,0.00148,70967.0,70957.0,7.5e-05]
[1773236340979,0.001,70969.0,70957.0,7.5e-05]
[1773236341183,0.07045212,70971.0,70957.0,7.5e-05]
[1773236341456,0.36207009,70978.0,70957.0,7.5e-05]
[1773236341457,0.00148,70987.0,70960.0,0.15869156]
[1773236341689,0.00148,70988.0,70961.0,0.00148]
[1773236342009,0.07191466,70988.0,70963.0,0.07045925]
[1773236342331,0.07043413,70989.0,70963.0,0.07045925]
[1773236342536,0.00148,70988.0,70963.0,0.07045925]
[1773236342737,0.00148,70988.0,70964.0,0.00148]
[1773236343183,0.07489059,70987.0,70963.0,0.07045925]
[1773236343359,0.07043387,70989.0,70963.0,0.07045925]
[1773236343560,0.00148,70988.0,70963.0,0.07045925]
[1773236343865,0.07043387,70989.0,70963.0,0.07045925]
[1773236343866,0.00148,70987.0,70963.0,0.07045925]
[1773236344036,0.00148,70986.0,70963.0,0.07045925]
[1773236344236,0.07043292,70990.0,70963.0,0.07045925]
[1773236344438,7.5e-05,70993.0,70970.0,0.15869156]
[1773236344684,7.5e-05,70993.0,70972.0,0.07583843]
[1773236345283,0.07050523,70993.0,70972.0,0.07583843]
[1773236345590,0.001,70988.0,70970.0,0.15869156]
[1773236345763,0.001,70988.0,70973.0,0.00148]
[1773236345986,0.00148,70992.0,70974.0,0.07192803]
[1773236345987,0.07043146,70991.0,70974.0,0.07192803]
[1773236346195,0.07050471,70993.0,70974.0,0.07192803]
[1773236346196,7.5e-05,70993.0,70975.0,0.00148]
[1773236347500,7.5e-05,70993.0,70980.0,0.15869156]
[1773236347701,0.36035353,71009.0,70980.0,0.15869156]
[1773236347702,0.0704092,71014.0,70980.0,0.15869156]
[1773236348019,0.0704092,71014.0,70982.0,0.07044039]
[1773236348020,0.07041063,71012.0,70982.0,0.07044039]
[1773236348221,0.13753122,71012.0,70983.0,0.00148]
[1773236348370,0.001,70993.0,70982.0,0.07044039]
[1773236348566,0.0001,70999.0,70983.0,0.00148]
[1773236348766,0.0001,70999.0,70963.0,0.22922892]
[1773236348767,0.0001,70999.0,70981.0,0.07044039]
[1773236349395,0.00148,70998.0,70981.0,0.07044039]
[1773236349806,0.00148,70998.0,70979.0,0.07044138]
[1773236350031,0.07050051,70997.0,70979.0,0.07044138]
[1773236350280,0.07489059,71004.0,70979.0,0.07044138]
[1773236350281,0.22277059,71031.0,70981.0,0.07583843]
[1773236350465,0.22277059,71031.0,70989.0,0.07583843]
[1773236350466,0.07129344,71015.0,70989.0,0.07583843]
[1773236350667,0.07129344,71015.0,70991.0,0.07583843]
[1773236350668,7.5e-05,71010.0,70991.0,0.07583843]
[1773236350872,0.0009607,71015.0,70991.0,0.07583843]
[1773236351223,0.07136858,71015.0,70991.0,0.07583843]
[1773236351644,0.0009607,71015.0,70991.0,0.07583843]
[1773236351888,0.07038365,71040.0,71005.0,0.15869156]
[1773236352024,0.01124,71042.0,71007.0,0.07041559]
[1773236352250,0.00148,71032.0,71007.0,0.07041559]
[1773236352452,0.36207009,71035.0,71006.0,0.00148]
[1773236352643,0.36207009,71035.0,71006.0,0.07189623]
[1773236352893,0.07045689,71041.0,71007.0,0.07583843]
[1773236353868,0.00148,71039.0,71007.0,0.07583843]
[1773236354074,0.07045986,71038.0,71010.0,0.07041261]
[1773236354354,0.07036452,71059.0,71029.0,0.07583843]
[1773236354570,0.07036452,71059.0,71029.0,0.07731843]
[1773236354571,0.07184452,71059.0,71029.0,0.07731843]
[1773236354800,0.07036452,71059.0,71029.0,0.07731843]
[1773236355015,0.00148,71058.0,71029.0,0.07731843]
[1773236355540,0.00148,71057.0,71029.0,0.07731843]
[1773236355871,0.00148,71056.0,71029.0,0.07731843]
[1773236356071,0.001,71058.0,71029.0,0.07583843]
[1773236356293,0.001,71058.0,71031.0,0.07583843]
[1773236356294,0.00148,71057.0,71031.0,0.07583843]
[1773236357156,0.00148,71057.0,71030.0,0.07187279]
[1773236357157,0.00148,71057.0,71030.0,0.00148]
[1773236357329,0.00148,71057.0,71022.0,0.00148]
[1773236357475,0.00148,71057.0,71021.0,0.00148]
[1773236357672,0.00148,71056.0,71021.0,0.00148]
[1773236357915,1e-08,71059.0,71020.0,0.00148]
[1773236358112,1e-08,71059.0,71019.0,0.07583843]
[1773236358113,0.15869156,71050.0,71019.0,0.07583843]
[1773236358290,0.15869156,71050.0,71000.0,0.2291131]
[1773236358291,0.07037396,71049.0,71000.0,0.2291131]
[1773236358492,0.07037396,71049.0,71002.0,0.07583843]
[1773236358739,0.07489059,71048.0,71002.0,0.07583843]
[1773236358906,0.07037396,71049.0,71011.0,0.07583843]
[1773236358907,0.00148,71047.0,71011.0,0.07583843]
[1773236359088,0.07037396,71049.0,71013.0,0.07583843]
[1773236359291,0.07037075,71053.0,71021.0,0.07583843]
[1773236359567,0.07037075,71053.0,71023.0,0.07583843]
[1773236359568,0.00148,71052.0,71023.0,0.07583843]
[1773236359917,0.001,71049.0,71023.0,0.07583843]
[1773236360469,0.07037495,71048.0,71024.0,0.07187873]
[1773236360620,0.07185495,71048.0,71024.0,0.07187873]
[1773236360783,0.07185495,71048.0,71024.0,0.07195373]
[1773236360987,0.07197245,71048.0,71024.0,0.07195373]
[1773236361194,0.00148,71047.0,71024.0,0.07195373]
[1773236362008,0.0001175,71047.0,71024.0,0.07195373]
[1773236362553,0.0001175,71047.0,71025.0,0.07279481]
[1773236363313,0.07049385,71047.0,71025.0,0.07279481]
[1773236363520,0.07049385,71047.0,71037.0,7.5e-05]
[1773236363833,0.07049385,71047.0,71024.0,0.07195373]
[1773236363834,0.07049385,71047.0,71024.0,7.5e-05]
[1773236364018,0.07049385,71047.0,71024.0,0.07047346]
[1773236364215,0.07037792,71045.0,71024.0,0.07047346]
[1773236364812,0.00148,71044.0,71024.0,7.5e-05]
[1773236364971,0.07049542,71045.0,71024.0,7.5e-05]
[1773236365401,0.06833797,71044.0,71007.0,0.0704136]
[1773236365605,0.07049542,71045.0,70997.0,7.5e-05]
[1773236365606,0.15869156,71020.0,70997.0,7.5e-05]
[1773236365914,0.00148,71019.0,70993.0,0.07050379]
[1773236366238,0.06981797,71018.0,70993.0,7.5e-05]
[1773236366444,0.06833797,71016.0,70993.0,7.5e-05]
[1773236366741,0.07181067,71017.0,70993.0,7.5e-05]
[1773236366742,0.00148,71015.0,70993.0,7.5e-05]
[1773236367015,0.00148,71014.0,70993.0,7.5e-05]
[1773236367594,0.0001175,71015.0,70993.0,7.5e-05]
[1773236367775,0.00148,71023.0,71000.0,0.15869156]
[1773236367983,0.07039781,71025.0,70997.0,0.00148]
[1773236367984,0.00148,71022.0,70997.0,0.00148]
[1773236368183,0.07039935,71024.0,70997.0,0.00148]
[1773236368367,0.001,71014.0,71002.0,7.5e-05]
[1773236368775,0.00148,71018.0,71002.0,7.5e-05]
[1773236369297,0.00148,71018.0,71010.0,7.5e-05]
[1773236370096,0.06833797,71031.0,71010.0,7.5e-05]
[1773236370331,0.07039378,71029.0,71002.0,7.5e-05]
[1773236370525,0.15869156,71020.0,70994.0,0.07042848]
[1773236370840,0.00148,71028.0,70994.0,0.07042848]
[1773236370841,0.07333797,71019.0,70994.0,0.07042848]
[1773236371057,0.07326297,71019.0,70994.0,0.07042848]
[1773236371446,0.07326297,71019.0,70993.0,0.07050348]
[1773236371447,0.06833797,71017.0,70993.0,7.5e-05]
[1773236371653,0.06833797,71017.0,70993.0,0.07050411]
[1773236372059,0.005,71019.0,70993.0,0.07050411]
[1773236372060,0.00148,71016.0,70993.0,0.07050411]
[1773236372261,0.005,71019.0,71015.0,7.5e-05]
[1773236372500,0.00148,71018.0,71015.0,7.5e-05]
[1773236372700,0.00148,71020.0,71015.0,7.5e-05]
[1773236372872,0.00148,71024.0,71015.0,7.5e-05]
[1773236373389,0.00148,71023.0,71015.0,7.5e-05]
[1773236373572,0.00148,71022.0,70996.0,0.00148]
[1773236373775,0.00148,71021.0,70996.0,0.00148]
[1773236373955,0.00148,71030.0,70996.0,0.00148]
[1773236374153,0.07038783,71036.0,71000.0,0.15876414]
[1773236374376,0.07186585,71037.0,71011.0,0.07041162]
[1773236374576,0.07186585,71037.0,71028.0,7.5e-05]
[1773236374780,0.07037727,71046.0,71011.0,0.07189162]
[1773236374979,0.00148,71043.0,71015.0,0.00022]
[1773236375180,0.00148,71043.0,71015.0,0.0017]
[1773236375380,0.00148,71042.0,71015.0,0.0017]
[1773236375585,0.001405,71042.0,71015.0,0.0017]
[1773236375747,0.00148,71041.0,71015.0,0.07449481]
[1773236376156,0.00148,71040.0,71015.0,0.0017]
[1773236376357,0.07057918,71044.0,71016.0,0.06840666]
[1773236376582,0.00148,71043.0,71016.0,0.14120147]
[1773236376818,0.00140501,71043.0,71016.0,0.14120147]
[1773236376981,1e-08,71044.0,71020.0,0.15876414]
[1773236377187,1e-08,71044.0,71020.0,0.15868914]
[1773236377416,1e-08,71044.0,71019.0,0.07279481]
[1773236377417,0.07037924,71044.0,71019.0,0.07279481]
[1773236377606,0.07037924,71044.0,71020.0,0.00148]
[1773236377879,0.15876414,71040.0,71015.0,0.00022]
[1773236378120,0.06833797,71037.0,71015.0,0.07162717]
[1773236378519,0.07038684,71036.0,71015.0,0.07162717]
[1773236378719,0.06833797,71035.0,71002.0,0.07041986]
[1773236379312,0.00144,71034.0,71002.0,0.07041986]
[1773236379514,0.06273578,71034.0,71002.0,0.07041986]
[1773236380098,0.07038684,71039.0,71002.0,0.07041986]
[1773236380099,0.32381475,71083.0,71039.0,0.06035965]
[1773236380364,0.06129578,71109.0,71073.0,0.15876414]
[1773236380365,0.0703184,71106.0,71073.0,0.15876414]
[1773236380562,0.07039093,71108.0,71073.0,0.15876414]
[1773236380563,7.5e-05,71108.0,71083.0,0.0073477]
[1773236380722,0.07031791,71106.0,71085.0,0.15876414]
[1773236380927,0.07032052,71103.0,71083.0,0.0073477]
[1773236381116,0.0703951,71104.0,71083.0,0.0073477]
[1773236381320,0.07039552,71104.0,71084.0,0.00148]
[1773236381517,0.07039552,71104.0,71085.0,0.00148]
[1773236382167,0.07039552,71104.0,71083.0,0.0068277]
[1773236382168,0.00148,71103.0,71083.0,0.0068277]
[1773236382321,0.07039552,71104.0,71083.0,0.0068277]
[1773236382520,0.001555,71104.0,71083.0,0.0068277]
[1773236382757,7.5e-05,71104.0,71066.0,0.07183702]
[1773236382958,0.00148,71103.0,71070.0,0.15876414]
[1773236383334,0.00148,71102.0,71070.0,0.15876414]
[1773236383756,0.00148,71102.0,71066.0,0.07183702]
[1773236384248,0.13161036,71109.0,71070.0,0.15876414]
[1773236384249,0.07031458,71109.0,71070.0,0.15876414]
[1773236384445,0.07031458,71109.0,71066.0,0.07183702]
[1773236384446,0.07032249,71101.0,71066.0,0.07183702]
[1773236384818,0.07032249,71101.0,71060.0,0.15876414]
[1773236384819,0.15876414,71090.0,71049.0,0.07037396]
[1773236385069,0.15876414,71090.0,71048.0,0.07037396]
[1773236385070,0.15876414,71080.0,71046.0,0.00148]
[1773236385268,0.00148,71079.0,71046.0,0.00148]
[1773236385436,0.06129578,71077.0,71043.0,0.07037991]
[1773236385642,0.00148,71076.0,71043.0,0.07037991]
[1773236385983,0.00148,71075.0,71043.0,0.07037991]
[1773236386293,0.16896,71087.0,71043.0,0.07037991]
[1773236386294,0.00148,71074.0,71043.0,0.07037991]
[1773236386572,0.07035119,71072.0,71045.0,0.07037792]
[1773236386748,0.00148,71071.0,71050.0,0.15849652]
[1773236386952,0.07035119,71075.0,71049.0,0.001]
[1773236387270,0.00148,71074.0,71073.0,7.5e-05]
[1773236387468,0.00148,71074.0,71053.0,0.00148]
[1773236387676,0.00148,71074.0,71051.0,0.00148]
[1773236387885,0.00148,71074.0,71046.0,0.00148]
[1773236388510,0.00148,71074.0,71047.0,0.07037594]
[1773236388511,0.0703502,71073.0,71047.0,0.07037594]
[1773236388668,0.0703502,71073.0,71042.0,0.01124]
[1773236388669,0.15849652,71070.0,71042.0,0.01124]
[1773236388869,0.15849652,71060.0,71020.0,0.07040171]
[1773236389076,0.06270078,71059.0,71021.0,0.07040171]
[1773236389290,0.00148,71058.0,71021.0,0.07040171]
[1773236389847,0.06336688,71049.0,71016.0,0.07040666]
[1773236390068,0.00144,71048.0,71016.0,0.07040666]
[1773236390434,0.06336688,71048.0,71016.0,0.07040666]
[1773236390638,0.06336688,71048.0,71015.0,0.07040734]
[1773236390639,0.07037693,71046.0,71015.0,0.00022]
[1773236390976,0.06336688,71037.0,71006.0,0.07041559]
[1773236391114,0.00144,71036.0,71007.0,0.00022]
[1773236391319,0.001365,71036.0,71007.0,0.00022]
[1773236391540,0.00144,71035.0,71002.0,0.07041984]
[1773236391715,0.07037693,71046.0,71010.0,0.15849652]
[1773236391913,0.00144,71045.0,71020.0,0.15849652]
[1773236392136,0.32468506,71051.0,71021.0,0.00148]
[1773236392337,0.00144,71050.0,71022.0,0.00148]
[1773236392544,0.00144,71050.0,71023.0,0.00148]
[1773236392705,0.07037396,71049.0,71024.0,0.07187873]
[1773236393108,0.06336688,71062.0,71024.0,0.07187873]
[1773236393311,0.001,71036.0,71024.0,0.07187873]
[1773236393529,0.00144,71050.0,71024.0,0.07187873]
[1773236393732,0.0014,71049.0,71024.0,0.07187873]
[1773236393969,0.07036356,71060.0,71024.0,0.07187873]
[1773236393970,0.001,71046.0,71024.0,0.07187873]
[1773236394158,0.07036356,71060.0,71030.0,0.15849652]
[1773236394378,0.07036208,71061.0,71030.0,0.15849652]
[1773236394379,0.00144,71059.0,71030.0,0.15849652]
[1773236394790,0.07036505,71058.0,71031.0,0.0703918]
[1773236395022,0.07036505,71058.0,71032.0,0.00148]
[1773236395575,0.00144,71059.0,71040.0,0.15849652]
[1773236395750,0.07180441,71059.0,71032.0,0.00148]
[1773236395952,0.07172941,71059.0,71033.0,0.00148]
[1773236396171,0.00144,71059.0,71033.0,0.00148]
[1773236396529,0.001365,71059.0,71033.0,0.00148]
[1773236396729,0.07036505,71058.0,71034.0,0.07038882]
[1773236397472,0.07029005,71058.0,71034.0,0.07038882]
[1773236397723,0.00144,71057.0,71034.0,0.07038882]
[1773236397883,0.13372507,71065.0,71034.0,0.07038882]
[1773236397884,0.07035911,71064.0,71034.0,0.07038882]
[1773236398087,0.00144,71063.0,71034.0,0.07038882]
[1773236398286,0.00144,71063.0,71034.0,0.07138882]
[1773236398624,0.00144,71063.0,71034.0,0.07238882]
[1773236398926,0.07036109,71062.0,71034.0,0.07138882]
[1773236399230,0.00144,71061.0,71034.0,0.07138882]
[1773236399458,0.06336688,71060.0,71033.0,0.07038882]
[1773236399636,0.00144,71061.0,71024.0,0.07039862]
[1773236399637,0.15849652,71050.0,71024.0,0.07039862]
[1773236399838,0.06480688,71049.0,71018.0,0.07040468]
[1773236399984,0.06336688,71047.0,71018.0,0.07040468]
[1773236400193,0.00144,71046.0,71018.0,0.07040468]
[1773236400418,0.06336688,71045.0,71011.0,0.07041162]
[1773236400591,0.15849652,71060.0,71011.0,0.07041162]
[1773236400791,0.001,71050.0,71021.0,0.07040171]
[1773236401107,0.00144,71049.0,71022.0,0.00148]
[1773236401529,0.001,71045.0,71023.0,0.00148]
[1773236401740,0.07036109,71062.0,71021.0,0.07040171]
[1773236401741,0.07035934,71064.0,71030.0,0.15849652]
[1773236401947,0.06336688,71059.0,71026.0,0.00148]
[1773236402265,0.06336688,71057.0,71026.0,0.001405]
[1773236402407,0.06336688,71057.0,71026.0,0.001255]
[1773236402617,0.06336688,71057.0,71026.0,0.00118]
[1773236402818,0.06336688,71057.0,71027.0,0.07032076]
[1773236402819,0.06336688,71055.0,71027.0,0.07032076]
[1773236403052,0.06336688,71055.0,71027.0,0.07024576]
[1773236403229,7.5e-05,71028.0,71027.0,0.07024576]
[1773236403431,7.5e-05,71037.0,71027.0,0.07024576]
[1773236403662,0.00144,71044.0,71027.0,0.07024576]
[1773236404274,7.5e-05,71046.0,71027.0,0.07024576]
[1773236404480,7.5e-05,71050.0,71030.0,0.15849652]
[1773236404683,7.5e-05,71050.0,71027.0,0.07024576]
[1773236404684,7.5e-05,71050.0,71027.0,0.00148]
[1773236404828,0.03828068,71052.0,71028.0,0.07039477]
[1773236405038,0.10164756,71052.0,71028.0,0.07039477]
[1773236405439,0.00148,71051.0,71028.0,0.07039477]
[1773236405770,0.00148,71051.0,71030.0,0.15849652]
[1773236406117,0.00148,71051.0,71028.0,0.07039477]
[1773236406403,7.5e-05,71055.0,71040.0,0.15849652]
[1773236406553,0.33757309,71096.0,71040.0,0.15849652]
[1773236406554,0.0705499,71074.0,71041.0,0.29657535]
[1773236406757,0.0002,71074.0,71051.0,0.07037198]
[1773236406991,0.0002,71074.0,71052.0,0.00148]
[1773236407231,0.07033338,71090.0,71052.0,0.00148]
[1773236407383,1.43804505,71189.0,71052.0,0.00148]
[1773236407384,0.07032546,71098.0,71070.0,0.15849652]
[1773236407584,0.07032546,71098.0,71071.0,0.00148]
[1773236407781,0.40927585,71099.0,71071.0,0.00148]
[1773236407782,0.08156461,71099.0,71071.0,0.00148]
[1773236407960,0.08304461,71099.0,71061.0,0.06384959]
[1773236408161,0.32468506,71098.0,71062.0,0.13407422]
[1773236408349,0.06336688,71097.0,71063.0,0.00148]
[1773236408773,0.07032744,71096.0,71064.0,0.07035911]
[1773236409058,0.07032744,71096.0,71070.0,0.15849652]
[1773236409255,0.00148,71095.0,71070.0,0.15849652]
[1773236409451,0.07032744,71096.0,71064.0,0.07035911]
[1773236409802,0.07032566,71098.0,71080.0,0.15849652]
[1773236410039,0.01124,71099.0,71081.0,0.00148]
[1773236410845,0.007,71110.0,71089.0,0.15849652]
[1773236410997,0.07031458,71109.0,71090.0,0.00148]
[1773236411202,0.07031458,71109.0,71091.0,0.00148]
[1773236411397,0.07031458,71109.0,71092.0,0.00148]
[1773236411600,0.07036077,71116.0,71099.0,0.15849652]
[1773236411601,5.257e-05,71116.0,71099.0,0.15849652]
[1773236411806,0.01060322,71140.0,71089.0,0.06384959]
[1773236411807,0.07037854,71121.0,71100.0,0.00148]
[1773236412158,0.07037854,71121.0,71101.0,0.00148]
[1773236412307,0.07037854,71121.0,71102.0,0.00148]
[1773236412509,0.07037854,71121.0,71082.0,0.07034129]
[1773236412709,0.00148,71120.0,71090.0,0.15849652]
[1773236412953,0.00148,71120.0,71081.0,0.07034129]
[1773236412954,0.0703047,71119.0,71081.0,0.07034228]
[1773236413130,0.0703047,71119.0,71082.0,0.00148]
[1773236413329,0.0703047,71119.0,71083.0,0.00148]
[1773236413330,0.06336688,71118.0,71083.0,0.00148]
[1773236414510,0.00148,71117.0,71083.0,0.00148]
[1773236414911,0.07030766,71116.0,71084.0,0.07033931]
[1773236415527,0.07030766,71116.0,71085.0,0.00148]
[1773236415727,0.07030766,71116.0,71113.0,7.5e-05]
[1773236415927,0.07030766,71116.0,71085.0,0.00148]
[1773236416132,0.00148,71115.0,71085.0,0.00148]
[1773236416548,0.00148,71115.0,71108.0,7.5e-05]
[1773236416750,0.00148,71115.0,71085.0,0.00148]
[1773236416935,0.07030964,71114.0,71094.0,0.07032942]
[1773236417655,0.00148,71113.0,71094.0,0.07032942]
[1773236417856,0.00148,71113.0,71093.0,0.00144]
[1773236418058,0.00148,71113.0,71093.0,0.07177021]
[1773236418258,0.00148,71112.0,71093.0,0.07177021]
[1773236419079,0.0703126,71111.0,71093.0,0.07177021]
[1773236419466,0.0703126,71112.0,71093.0,0.07177021]
[1773236419830,0.0717926,71112.0,71093.0,0.07177021]
[1773236419995,0.0703126,71112.0,71093.0,0.07177021]
[1773236420166,0.0703126,71112.0,71093.0,0.07032965]
[1773236420374,0.0703126,71112.0,71093.0,0.07176965]
[1773236420571,0.0705142,71112.0,71093.0,0.07176965]
[1773236420808,0.0703117,71112.0,71093.0,0.07176965]
[1773236421204,1e-08,71112.0,71093.0,0.07176965]
[1773236421454,0.07030837,71116.0,71093.0,0.07176965]
[1773236421964,0.07030837,71116.0,71094.0,0.00144]
[1773236422394,0.07030837,71116.0,71081.0,0.07034228]
[1773236422395,0.06402542,71115.0,71081.0,0.07034228]
[1773236422545,0.15849652,71100.0,71058.0,0.07036505]
[1773236422748,0.07030837,71116.0,71060.0,0.15849652]
[1773236422749,0.36636307,71099.0,71060.0,0.15849652]
[1773236422953,0.00148,71098.0,71060.0,0.15849652]
[1773236423271,0.00148,71097.0,71061.0,0.07036208]
[1773236423454,0.00148,71096.0,71070.0,0.15849652]
[1773236423647,0.00148,71096.0,71071.0,0.00148]
[1773236424052,0.00148,71096.0,71061.0,0.07036208]
[1773236424053,0.06402542,71095.0,71061.0,0.07036208]
[1773236424257,0.06402542,71095.0,71062.0,0.00148]
[1773236424456,0.06402542,71095.0,71063.0,0.00148]
[1773236424760,0.07032546,71098.0,71070.0,0.15849652]
[1773236424761,0.00148,71094.0,71070.0,0.15849652]
[1773236425109,0.00148,71094.0,71071.0,0.00148]
[1773236425307,0.00148,71094.0,71072.0,0.07183119]
[1773236425308,0.07033041,71093.0,71072.0,0.07183119]
[1773236425518,0.07181041,71093.0,71072.0,0.07183119]
[1773236425891,0.07181041,71093.0,71072.0,0.00148]
[1773236426093,0.07033041,71093.0,71072.0,0.00148]
[1773236426275,0.00148,71092.0,71072.0,0.00148]
[1773236426698,0.00148,71092.0,71071.0,0.07035119]
[1773236426896,0.00148,71092.0,71073.0,0.00148]
[1773236427374,0.07033239,71091.0,71055.0,0.07044203]
[1773236427517,0.06402542,71090.0,71056.0,0.00148]
[1773236428035,0.06402542,71090.0,71057.0,0.00148]
[1773236428391,0.00148,71089.0,71057.0,0.00148]
[1773236428638,0.06402542,71088.0,71058.0,0.00148]
[1773236428849,0.06402542,71088.0,71059.0,0.00148]
[1773236429006,0.06402542,71088.0,71056.0,0.07036703]
[1773236429208,0.06402542,71088.0,71055.0,0.07192203]
[1773236429209,0.06402542,71079.0,71033.0,7.5e-05]
[1773236429411,0.07033634,71087.0,71041.0,0.07038147]
[1773236429412,0.30085765,71069.0,71041.0,0.07038147]
[1773236429641,0.06402542,71068.0,71041.0,0.07038147]
[1773236429852,0.06550542,71068.0,71041.0,0.07038147]
[1773236430052,0.06402542,71068.0,71041.0,0.07038147]
[1773236430286,0.06402542,71068.0,71050.0,7.5e-05]
[1773236430603,7.5e-05,71064.0,71050.0,7.5e-05]
[1773236430754,7.5e-05,71064.0,71041.0,0.07038147]
[1773236430954,0.06402542,71063.0,71041.0,0.07038147]
[1773236431125,0.06402542,71063.0,71041.0,1e-08]
[1773236431329,0.07036109,71062.0,71041.0,1e-08]
[1773236431529,0.06402542,71060.0,71041.0,1e-08]
[1773236431769,0.00148,71059.0,71041.0,1e-08]
[1773236432475,0.06550542,71059.0,71041.0,1e-08]
[1773236433237,0.07184505,71058.0,71041.0,1e-08]
[1773236433431,0.07036505,71058.0,71041.0,1e-08]
[1773236433736,0.07036505,71058.0,71041.0,0.00022001]
[1773236433737,0.00148,71057.0,71041.0,0.00022001]
[1773236434165,0.07036505,71058.0,71041.0,0.00022001]
[1773236434362,0.06410042,71086.0,71042.0,0.17569266]
[1773236434566,0.07043488,71064.0,71042.0,0.24021287]
[1773236434764,0.07043488,71064.0,71041.0,0.00022001]
[1773236434765,0.30085765,71057.0,71041.0,1e-08]
[1773236434968,0.30085765,71057.0,71033.0,7.5e-05]
[1773236434969,0.06402542,71055.0,71033.0,7.5e-05]
[1773236435170,0.06402542,71055.0,71028.0,0.07216943]
[1773236435390,0.13439443,71054.0,71028.0,0.07216943]
[1773236435591,0.06402542,71052.0,71028.0,0.07216943]
[1773236435855,0.06402542,71052.0,71021.0,0.07040116]
[1773236435856,0.06402542,71049.0,71020.0,0.00022]
[1773236436058,0.06402542,71049.0,71020.0,0.07062263]
[1773236436480,0.15853661,71050.0,71020.0,0.00022]
[1773236436481,0.06402542,71047.0,71020.0,0.00022]
[1773236436856,0.06402542,71038.0,71015.0,7.5e-05]
[1773236437076,0.06402542,71038.0,71014.0,0.07040822]
[1773236437077,0.06402542,71029.0,71001.0,0.0704211]
[1773236437276,0.06546542,71028.0,71006.0,0.07049107]
[1773236437478,0.07039576,71027.0,71006.0,7.5e-05]
[1773236438101,0.00144,71026.0,71006.0,7.5e-05]
[1773236438275,0.07039576,71027.0,71006.0,7.5e-05]
[1773236438459,0.00144,71026.0,71006.0,7.5e-05]
[1773236438660,0.07039576,71027.0,71006.0,7.5e-05]
[1773236438661,0.00144,71025.0,71006.0,7.5e-05]
[1773236439232,0.00144,71025.0,71000.0,0.00022]
[1773236439233,0.15853661,71020.0,71000.0,0.00022]
[1773236439439,0.15853661,71020.0,70977.0,0.07044469]
[1773236439440,0.07040468,71018.0,70977.0,0.07044469]
[1773236439589,0.07040468,71018.0,70986.0,0.07043642]
[1773236439590,0.06550542,71017.0,70986.0,0.07043642]
[1773236439769,0.06550542,71017.0,70985.0,0.01124]
[1773236439770,0.30085765,71009.0,70985.0,0.01124]
[1773236439974,0.06402542,71007.0,70985.0,0.01124]
[1773236440241,0.06402542,71007.0,70979.0,7.5e-05]
[1773236440492,0.06402542,71007.0,70979.0,0.07051791]
[1773236440692,0.06044528,71005.0,70979.0,0.07051817]
[1773236440825,0.06044528,71005.0,70979.0,0.07051819]
[1773236441026,0.06044528,71005.0,70979.0,7.5e-05]
[1773236441224,0.06044528,70999.0,70975.0,7.5e-05]
[1773236441440,0.07042551,70997.0,70975.0,0.07052186]
[1773236441898,0.00148,70996.0,70975.0,0.07052186]
[1773236442316,0.00148,70996.0,70976.0,0.00144]
[1773236442737,0.07042551,70997.0,70976.0,0.00144]
[1773236442952,0.07042551,70997.0,70984.0,0.00022]
[1773236443165,0.37127224,71009.0,70984.0,0.00022]
[1773236443378,0.37127224,71009.0,70976.0,0.00144]
[1773236443379,0.06044528,71007.0,70977.0,0.07044535]
[1773236443594,0.0704146,71008.0,70977.0,0.07044535]
[1773236444007,0.0704146,71008.0,70981.0,0.18081254]
[1773236444204,0.0704146,71008.0,70982.0,0.06127816]
[1773236444545,0.07040468,71018.0,70990.0,0.15853661]
[1773236444719,0.07040468,71018.0,70992.0,0.06127816]
[1773236445471,0.0703982,71025.0,71000.0,0.15853661]
[1773236445472,0.07039774,71025.0,71000.0,0.15853661]
[1773236445820,0.07039774,71025.0,71001.0,0.00148]
[1773236446445,0.07039774,71025.0,70993.0,0.13170763]
[1773236446662,0.06044528,71024.0,70982.0,0.001]
[1773236446884,0.15853661,71010.0,70970.0,7.5e-05]
[1773236447105,0.06044528,70999.0,70971.0,0.00144]
[1773236447319,0.2,70975.0,70971.0,0.00144]
[1773236447538,0.2,70975.0,70970.0,1e-08]
[1773236447539,0.19240798,70975.0,70970.0,1e-08]
[1773236448146,0.19240798,70975.0,70966.0,7.5e-05]
[1773236448147,0.26285589,70975.0,70962.0,7.5e-05]
[1773236448512,0.26285589,70975.0,70957.0,0.07053948]
[1773236448513,0.00148,70974.0,70957.0,0.07053948]
[1773236448667,0.19240798,70975.0,70957.0,0.07053948]
[1773236448873,0.26285555,70975.0,70970.0,0.001]
[1773236449069,0.26285555,70975.0,70961.0,0.00144]
[1773236450094,0.26433555,70975.0,70959.0,0.07046279]
[1773236450301,0.26533555,70975.0,70957.0,7.5e-05]
[1773236450489,0.26533555,70975.0,70957.0,0.07197993]
[1773236450691,0.26633555,70975.0,70962.0,0.00022]
[1773236451000,0.26633555,70975.0,70958.0,0.00144]